[Event "55th Biel Festival MTO 2022"]
[Site "Biel"]
[Date "2022.07.22"]
[Round "9.5"]
[White "Martirosyan, Haik M."]
[Black "Puranik, Abhimanyu"]
[Result "1-0"]
[ECO "C54"]
[WhiteElo "2672"]
[BlackElo "2612"]
[Annotator "TA"]
[PlyCount "89"]
[EventDate "2022.07.13"]
[EventType "swiss"]
[EventCountry "SUI"]
[SourceTitle "playchess.com"]
[Source "ChessBase"]
[SourceQuality "1"]
[TimeControl "40/5400+30:1800+30"]

{[%evp 13,89,18,26,20,26,19,29,10,21,29,15,17,21,19,24,14,25,11,42,17,75,67,76,60,71,71,76,59,63,0,0,7,92,87,94,98,97,100,94,84,79,87,94,80,87,43,69,48,69,61,56,54,50,27,163,43,37,44,58,50,156,144,349,535,539,527,544,544,544,480,561,443,746,729,1110,1109,1022,954]} 1. e4 {[%emt 0:00:03]} e5 {[%emt 0:01:51]} 2. Nf3 {[%emt 0:00:11]} Nc6 {[%emt 0:00:04]} 3. Bc4 {[%emt 0:00:17]} Bc5 {[%emt 0:00:23]} 4. d3 {[%emt 0:00:10]} Nf6 {[%emt 0:00:48]} 5. c3 {[%emt 0:00:28]} d6 {[%emt 0:00:33]} 6. O-O {[%emt 0:00:17]} a6 {[%emt 0:00:40]} 7. a4 {[%emt 0:00:40]} h6 {[%emt 0:00:36]} 8. Re1 $1 {[%emt 0:03:03] 8.Re1 is better than 8.Nbd2. C54: Giuoco Piano: 4 c3 Nf6, main lines with 5 d4 and 5 d3.} O-O {[%emt 0:00:40]} 9. h3 {[%emt 0:01:51]} Re8 {[%emt 0:02:25]} 10. Nbd2 {[%emt 0:02:57] White has an edge.} Be6 {[%emt 0:02:05]} 11. Bxe6 {[%emt 0:01:17]} Rxe6 {[%emt 0:00:19]} 12. b4 {[%emt 0:00:05]} Ba7 {[%emt 0:00:07]} 13. Qc2 {[%emt 0:02:00]} Qd7 {[%emt 0:06:03]} 14. Nf1 {[%emt 0:01:49]} Ne7 {[%emt 0:00:49]} 15. Ng3 {[%emt 0:07:11]} Ng6 {[%emt 0:23:33] [#]} 16. d4 $5 $146 {[%emt 0:04:38][%mdl 8] New and interesting.} ({Predecessor:} 16. c4 c6 17. a5 d5 18. Be3 Bxe3 19. fxe3 dxe4 20. dxe4 c5 21. bxc5 Qc7 22. Qc3 {½-½ (45) Karjakin,S (2763)-Anand,V (2776) Moscow 2018}) 16... exd4 {[%emt 0:08:31]} (16... d5 $11) 17. cxd4 $16 {[%emt 0:02:00]} Rae8 {[%emt 0:00:59][%cal Of6e4]} 18. Be3 {[%emt 0:02:34] d5 is the strong threat.} R6e7 {[%emt 0:04:29][%cal Rf6e4]} (18... Nxe4 $2 19. d5 R6e7 20. Nxe4 (20. Bxa7 Ng5 $16) 20... Bxe3 21. Rxe3 $18) 19. Nd2 {[%emt 0:02:06]} Nh4 {[%emt 0:08:11]} 20. Re2 {[%emt 0:11:36]} Nh7 {[%emt 0:02:01]} 21. Rae1 {[%emt 0:00:54]} (21. Qd3 $14) 21... d5 $11 {[%emt 0:06:42]} 22. e5 {[%emt 0:03:44]} f5 {[%emt 0:03:26]} (22... Ng5 $11 {keeps the balance.}) 23. f4 $16 {[%emt 0:05:47]} Nf8 {[%emt 0:00:54]} 24. Rf2 {[%emt 0:00:48]} Rf7 {[%emt 0:01:44]} 25. Ne2 {[%emt 0:02:29]} Ne6 {[%emt 0:01:14]} 26. g3 {[%emt 0:01:25]} Ng6 {[%emt 0:00:04]} 27. Nf3 {[%emt 0:00:56]} Ref8 {[%emt 0:01:27]} 28. Ref1 {[%emt 0:01:48]} Ne7 {[%emt 0:00:27]} 29. Nh4 {[%emt 0:03:24]} g6 {[%emt 0:05:57]} 30. g4 {[%emt 0:05:50]} Kh7 {[%emt 0:05:26]} 31. Rg2 {[%emt 0:00:56]} Qc6 {[%emt 0:02:06]} 32. Qb1 {[%emt 0:03:14]} Qxa4 {[%emt 0:00:36]} 33. Kh2 $1 {[%emt 0:00:53]} (33. gxf5 gxf5 34. Kh1 Bb6 $11) 33... Qb5 {[%emt 0:01:31]} (33... Rg7 $11 {and Black stays safe.}) 34. gxf5 {[%emt 0:04:23]} (34. Ng3 $1 $18 {[%cal Oh4g6] Black must now prevent Nxg6!} Kh8 35. Rd2) 34... Nxf5 $14 {[%emt 0:06:13]} 35. Nxf5 {[%emt 0:08:55]} gxf5 {[%emt 0:00:02]} (35... Rxf5 36. Ng3 $16) 36. Rfg1 {[%emt 0:00:59] Threatens to win with Ng3.} a5 {[%emt 0:02:26]} ({Better is} 36... Re7 $14) 37. Qe1 $16 {[%emt 0:02:58]} Rg7 {[%emt 0:00:54] Inhibits Rg6.} (37... Qe8 $16 38. bxa5 (38. Qg3 Rg7 $11) 38... c6) 38. Rxg7+ $18 {[%emt 0:01:02]} (38. bxa5 Rxg2+ 39. Rxg2 Rg8 $11) 38... Nxg7 {[%emt 0:00:02] [#] White is clearly winning.} 39. Qg3 $1 {[%emt 0:01:20][%csl Gg1][%cal Rg3g7]} Qxe2+ {[%emt 0:01:10] [#]} 40. Rg2 $1 {[%emt 0:00:26]} ({Wrong is} 40. Kh1 $2 Rf7 41. bxa5 (41. e6 $2 Re7 $19) 41... Qh5 $19) 40... Qxg2+ {[%emt 0:00:12]} 41. Qxg2 {[%emt 0:30:20]} c6 {[%emt 0:04:58]} 42. bxa5 {[%emt 0:00:00]} Ne6 {[%emt 0:00:07]} (42... Rf7 $142 43. Qc2 Rc7) 43. Qc2 {[%emt 0:00:00]} Nc7 {[%emt 0:06:21]} 44. a6 {[%emt 0:00:00]} Nxa6 {[%emt 0:00:08]} 45. Qb1 {[%emt 0:00:00] Weighted Error Value: White=0.15 (very precise) /Black=0.32} 1-0

[Event "55th Biel Festival MTO 2022"]
[Site "Biel"]
[Date "2022.07.22"]
[Round "9.8"]
[White "Pranav Anand"]
[Black "Yu, Yangyi"]
[Result "0-1"]
[ECO "D90"]
[WhiteElo "2463"]
[BlackElo "2720"]
[Annotator "TA"]
[PlyCount "88"]
[EventDate "2022.07.13"]
[EventType "swiss"]
[EventCountry "SUI"]
[SourceTitle "playchess.com"]
[Source "ChessBase"]
[SourceQuality "1"]
[TimeControl "40/5400+30:1800+30"]

{[%evp 9,88,0,-6,-18,-6,-23,86,31,34,24,17,10,59,25,65,46,36,34,44,42,49,-15,-20,-19,-22,-18,-28,-19,-19,-12,-28,-27,-22,-20,-32,-32,-16,-30,-6,-80,-36,-36,-36,-36,-45,-44,-38,-36,-35,-54,-37,-154,-139,-175,-177,-183,-171,-164,-177,-140,-85,-94,-80,-144,-140,-210,-149,-333,-328,-318,-172,-298,-290,-261,-266,-254,-253,-492,-485,-639,-620]} 1. d4 {[%emt 0:00:04]} Nf6 {[%emt 0:01:09]} 2. c4 {[%emt 0:00:06]} g6 {[%emt 0:02:03]} 3. Nc3 {[%emt 0:00:05]} d5 {[%emt 0:00:15]} 4. Nf3 {[%emt 0:00:10]} Bg7 {[%emt 0:00:19]} 5. h4 {[%emt 0:00:04]} dxc4 {[%emt 0:10:42][%cal Oc7c5]} 6. e4 {[%emt 0:00:14] D90: Grünfeld: 4 Nf3 Bg7 sidelines.} c5 {[%emt 0:00:08]} 7. d5 {[%emt 0:00:12]} Bg4 {[%emt 0:00:19]} (7... b5 $11) 8. Bxc4 {[%emt 0:10:32]} (8. Qa4+ $16 Kf8 9. Qxc4 (9. Bxc4 Bxf3 10. gxf3 a6 $14) 9... Bxf3 10. gxf3) 8... Nbd7 $14 {[%emt 0:00:27]} 9. Qc2 {[%emt 0:04:15]} O-O {[%emt 0:01:19] [#]} 10. Nh2 $146 {[%emt 0:04:43]} ({Predecessor:} 10. Be3 a6 11. a4 Bxf3 12. gxf3 Ne5 13. Be2 Rc8 14. O-O Qd7 15. Kg2 Nh5 16. Qd1 {½-½ (48) Lopez,H (2107)-Seo,J (2483) Chess.com INT 2022}) 10... h5 {[%emt 0:08:24]} (10... Ne5 $11 11. Nxg4 Nxc4 12. Nxf6+ Bxf6) 11. Bf4 {[%emt 0:03:11]} Nb6 {[%emt 0:08:41]} 12. Be2 {[%emt 0:11:10]} Bxe2 {[%emt 0:01:53]} 13. Qxe2 {[%emt 0:00:05]} Qd7 {[%emt 0:00:30]} 14. a4 {[%emt 0:00:08]} Rae8 {[%emt 0:05:41]} 15. Be3 {[%emt 0:11:15]} (15. a5 $14 Nc8 16. O-O) 15... e6 $11 {[%emt 0:05:26]} 16. dxe6 {[%emt 0:10:33]} ({Don't go for} 16. Bxc5 $2 Nxe4 $1 {[%mdl 512]} 17. Nxe4 exd5 $19) 16... Qxe6 {[%emt 0:01:41]} 17. Bxc5 {[%emt 0:09:06]} Nxe4 {[%emt 0:02:52]} 18. Bxf8 {[%emt 0:00:14]} Nxc3 {[%emt 0:01:49][%csl Gc3,Ge8][%cal Re6e2][%mdl 64] Pin, Discovered Attack} ({Much less strong is} 18... Kxf8 19. O-O $14) 19. Qxe6 {[%emt 0:00:05]} Rxe6+ {[%emt 0:00:09]} 20. Kf1 {[%emt 0:00:02]} Kxf8 {[%emt 0:00:15]} 21. bxc3 {[%emt 0:00:28]} Bxc3 {[%emt 0:00:06]} 22. Rb1 {[%emt 0:00:58]} Nxa4 {[%emt 0:00:07][%cal Ob7b5] White should prevent ...b5!} 23. Nf3 {[%emt 0:00:04]} Re7 {[%emt 0:06:19]} 24. Rh3 {[%emt 0:02:43]} (24. g3 $11) 24... a6 {[%emt 0:03:57] Black is more active.} 25. Ng5 {[%emt 0:02:52]} b5 {[%emt 0:06:46] Strongly threatening ...b4.} 26. Rd3 {[%emt 0:04:50]} b4 {[%emt 0:01:33]} 27. Rd8+ $1 {[%emt 0:00:10]} Kg7 {[%emt 0:00:19]} 28. Ra8 {[%emt 0:04:12]} Nc5 {[%emt 0:03:13][%cal Oa6a5]} 29. Rc8 {[%emt 0:00:04]} Ne4 {[%emt 0:07:41]} 30. Nf3 {[%emt 0:01:22]} ({White should try} 30. Nxe4 $15 Rxe4 31. Ra8) 30... Rb7 {[%emt 0:04:05]} 31. Ra8 {[%emt 0:06:27]} Rb6 {[%emt 0:00:32]} 32. Ke2 {[%emt 0:00:48]} Bf6 $1 {[%emt 0:00:33]} 33. Kd3 {[%emt 0:01:35]} Nxf2+ {[%emt 0:03:42]} 34. Kc4 {[%emt 0:00:01] [#]} Bc3 {[%emt 0:00:30]} (34... Ng4 $142 $1 {[%cal Rg4e3] White must now prevent ...Ne3+.} 35. Kb3 Ne3) 35. Ng5 $17 {[%emt 0:00:03]} Rc6+ {[%emt 0:02:17]} 36. Kb3 {[%emt 0:01:05]} (36. Kd5 $142 Rc7 37. Rxa6) 36... Nd3 {[%emt 0:01:47] Threatens to win with ...Bd4.} 37. Rf1 {[%emt 0:00:54]} (37. Ra7 $17 Nc5+ 38. Kc4 Nb7+ 39. Kb3 Nc5+ 40. Kc4 Nb7+ 41. Kb3) 37... Nc5+ {[%emt 0:00:58]} 38. Ka2 $2 {[%emt 0:00:42] Loses the game.} (38. Kc4 $17 {was the only chance.} Ne6+ 39. Kb3 Nd4+ 40. Ka2) 38... Rc7 $19 {[%emt 0:01:53]} 39. Kb1 {[%emt 0:02:08]} b3 {[%emt 0:01:42]} (39... Re7 $142 {aiming for ...f6.} 40. Rc8 Nb3) 40. Rc1 {[%emt 0:00:28]} (40. Re8 {is a better defense.}) 40... Bf6 {[%emt 0:01:49]} 41. Rb8 {[%emt 0:36:48]} (41. Ne4 $2 {[#]} Nxe4 $1 42. Rxc7 Nd2+ 43. Kc1 b2+ 44. Kxd2 b1=Q $19) 41... b2 {[%emt 0:31:05]} 42. Rc4 {[%emt 0:00:23]} Rd7 {[%emt 0:03:15] Hoping for ...Rd1+.} 43. Kc2 {[%emt 0:00:12] Prevents Rd1.} ({But not} 43. Rxc5 $2 Rd1+ 44. Kc2 Rc1+ 45. Kd3 Rxc5 $19) (43. Rxb2 {might work better.} Bxb2 44. Kxb2 Nd3+ 45. Kb3) 43... Nd3 {[%emt 0:00:41] ( -> ...Ne1+)} 44. Nf3 {[%emt 0:00:27] Against Ne1+} a5 {[%emt 0:00:39] Weighted Error Value: White=0.37/Black=0.16 (very precise)} 0-1

[Event "55th Biel Festival MTO 2022"]
[Site "Biel"]
[Date "2022.07.22"]
[Round "9.9"]
[White "Lagarde, Maxime"]
[Black "Prraneeth Vuppala"]
[Result "0-1"]
[ECO "A36"]
[WhiteElo "2631"]
[BlackElo "2457"]
[Annotator "TA"]
[PlyCount "76"]
[EventDate "2022.07.13"]
[EventType "swiss"]
[EventCountry "SUI"]
[SourceTitle "playchess.com"]
[Source "ChessBase"]
[SourceQuality "1"]
[TimeControl "40/5400+30:1800+30"]

{[%evp 9,76,0,0,0,0,0,10,11,0,0,20,13,4,8,7,0,7,0,0,0,0,0,0,0,0,-7,0,0,0,0,0,-37,-42,-56,-24,-113,-61,-51,-62,-107,-108,-106,-99,-93,-106,-102,-97,-107,-88,-88,-97,-85,-96,-125,-32,-29,-29,-24,-27,-91,-71,-93,-91,-216,-172,-131,-131,-5273,-1553]} 1. c4 {[%emt 0:05:35]} c5 {[%emt 0:00:21]} 2. g3 {[%emt 0:01:38]} g6 {[%emt 0:04:34]} 3. Bg2 {[%emt 0:00:27]} Bg7 {[%emt 0:00:08]} 4. Nc3 {[%emt 0:01:19]} Nc6 {[%emt 0:00:25]} 5. d3 {[%emt 0:00:26]} d6 {[%emt 0:02:01]} 6. e3 {[%emt 0:00:29] A36: Symmetrical English vs ...g6: 4 Bg2 Bg7.} e6 {[%emt 0:00:45]} 7. Nge2 {[%emt 0:00:48]} Nge7 {[%emt 0:00:08]} 8. O-O {[%emt 0:00:14] The position is equal.} O-O {[%emt 0:00:10]} 9. b3 {[%emt 0:00:19]} b6 {[%emt 0:05:47] 9...Rb8 is a critical line.} 10. Ba3 {[%emt 0:00:50] [#]} Ba6 $146 {[%emt 0:00:12]} ({Predecessor:} 10... Bb7 11. d4 Re8 12. Qd2 cxd4 13. Nxd4 d5 14. Nxc6 Bxc6 15. Rfd1 dxc4 16. Qe2 Qc8 17. Bxc6 Qxc6 {1-0 (25) Lagarde,M (2631)-Nguyen,T (2588) Reykjavik 2021}) 11. Rc1 {[%emt 0:26:28]} Rc8 {[%emt 0:00:39]} 12. d4 {[%emt 0:06:51]} cxd4 {[%emt 0:03:34]} 13. exd4 {[%emt 0:00:40]} d5 {[%emt 0:00:57]} 14. cxd5 {[%emt 0:00:19]} exd5 {[%emt 0:00:10]} 15. Bh3 {[%emt 0:02:47]} Rc7 {[%emt 0:32:12]} 16. Qd2 {[%emt 0:00:07]} Re8 {[%emt 0:02:39]} 17. Rc2 {[%emt 0:07:12]} b5 {[%emt 0:20:39] ...b4 is the strong threat.} 18. Qd3 {[%emt 0:06:38]} Nb8 {[%emt 0:10:27][%cal Ob5b4] aiming for ...b4!} 19. Qf3 {[%emt 0:16:18]} Nbc6 {[%emt 0:01:15] And now ...b4 would win.} 20. Bxe7 {[%emt 0:01:50]} Nxe7 {[%emt 0:07:49]} 21. a3 {[%emt 0:05:11]} Nc6 {[%emt 0:03:56] Hoping for ...b4.} 22. Nxd5 {[%emt 0:08:46] [#]} (22. Qd3 $11 {remains equal.}) 22... Ne5 $1 {[%emt 0:00:22][%mdl 512]} 23. dxe5 $15 {[%emt 0:00:54]} Rxc2 {[%emt 0:00:02]} 24. e6 {[%emt 0:01:20]} fxe6 {[%emt 0:00:40]} 25. Nb4 {[%emt 0:00:20][%csl LRa6,LRc2] [#]} Bb7 $1 {[%emt 0:00:46][%mdl 512]} 26. Qxb7 {[%emt 0:00:24]} Rxe2 {[%emt 0:00:04]} 27. Qxb5 {[%emt 0:01:03]} Rd2 {[%emt 0:00:07]} 28. Nc6 {[%emt 0:01:05][%csl LRa7,LRd8]} Qd5 {[%emt 0:01:38]} 29. Nxa7 {[%emt 0:00:45]} Rf8 {[%emt 0:00:25]} 30. Qxd5 {[%emt 0:01:10]} exd5 {[%emt 0:00:05]} 31. Nc6 {[%emt 0:00:27]} d4 {[%emt 0:00:15]} (31... Bb2 $17 32. a4 Rf6) 32. Be6+ {[%emt 0:00:17]} Kh8 {[%emt 0:00:03][%mdl 1024] Black has compensation.} 33. Bc4 {[%emt 0:00:11]} d3 {[%emt 0:01:57][%cal Bd4d3,Bd3d2][%mdl 32]} 34. Kg2 {[%emt 0:01:53]} (34. a4 $11) 34... Bc3 {[%emt 0:01:00] Black is more active.} 35. b4 {[%emt 0:00:12]} Bb2 {[%emt 0:00:27]} 36. a4 {[%emt 0:01:39]} (36. b5 $17) 36... Rc2 $19 {[%emt 0:00:08]} 37. Bd5 {[%emt 0:00:00]} d2 {[%emt 0:00:37]} 38. b5 $2 {[%emt 0:00:27][%mdl 8192] [#]} (38. Rd1 $17 Re8 39. b5) 38... Rxf2+ $3 {[%emt 0:00:22][%mdl 576] Promotion.  Weighted Error Value: White=0.42/Black=0.11 (very precise)} 0-1

[Event "55th Biel Festival MTO 2022"]
[Site "Biel"]
[Date "2022.07.22"]
[Round "9.10"]
[White "Banusz, Tamas"]
[Black "Licznerski, Lukasz"]
[Result "1-0"]
[ECO "A16"]
[WhiteElo "2611"]
[BlackElo "2451"]
[Annotator "TA"]
[PlyCount "95"]
[EventDate "2022.07.13"]
[EventType "swiss"]
[EventCountry "SUI"]
[SourceTitle "playchess.com"]
[Source "ChessBase"]
[SourceQuality "1"]
[TimeControl "40/5400+30:1800+30"]

{[%evp 9,95,22,26,26,18,28,22,26,25,26,27,18,9,8,20,12,3,0,0,0,0,6,30,6,25,0,25,38,90,90,90,90,90,90,90,90,90,54,66,41,83,84,77,54,99,72,124,127,329,321,372,295,302,288,283,292,456,385,391,403,355,381,405,398,405,401,405,405,395,394,397,395,500,504,533,514,455,429,12841,12841,12841,12842,12842,12843,12845,12845,12845,12846]} 1. Nf3 {[%emt 0:03:43]} Nf6 {[%emt 0:01:27]} 2. c4 {[%emt 0:00:10]} g6 {[%emt 0:00:07]} 3. Nc3 {[%emt 0:00:11]} d5 {[%emt 0:00:38]} 4. cxd5 {[%emt 0:00:14]} Nxd5 {[%emt 0:00:02]} 5. h4 {[%emt 0:00:14][%cal Bh2h4,Bh4h5,Bh5h6][%mdl 32]} Bg7 {[%emt 0:00:26]} 6. e4 {[%emt 0:00:47] A16: English Opening: 1...Nf6 with ...d5.} Nxc3 {[%emt 0:00:17]} 7. dxc3 {[%emt 0:00:44]} Qxd1+ {[%emt 0:00:08]} 8. Kxd1 {[%emt 0:00:05] The position is equal.} Nd7 {[%emt 0:03:56]} 9. h5 {[%emt 0:00:28]} Nc5 {[%emt 0:01:28]} 10. h6 {[%emt 0:00:13]} Bf8 {[%emt 0:00:01]} 11. e5 {[%emt 0:00:14]} Bg4 {[%emt 0:14:00]} 12. Be3 {[%emt 0:00:21]} O-O-O+ {[%emt 0:11:02]} 13. Kc1 {[%emt 0:02:21] [#]} Bxf3 $146 {[%emt 0:06:39]} ({Predecessor:} 13... Nd3+ 14. Kc2 Bf5 15. Kb3 f6 16. Bd4 Be6+ 17. Kc2 fxe5 18. Nxe5 Nb4+ 19. Kc1 Nxa2+ 20. Kc2 Nb4+ 21. Kc1 Na2+ 22. Kc2 {½-½ (22) Albano,A (2276)-Connelly,K (2255) ICCF email 2017}) 14. gxf3 {[%emt 0:00:19]} e6 {[%emt 0:05:44]} 15. Kc2 {[%emt 0:04:45]} a6 {[%emt 0:10:02]} 16. a4 {[%emt 0:04:47]} Be7 {[%emt 0:02:18]} 17. f4 {[%emt 0:10:38]} Nd7 {[%emt 0:06:05]} 18. a5 {[%emt 0:11:31]} Rhe8 {[%emt 0:13:50]} ({Better is} 18... Bc5 $14) 19. b4 $16 {[%emt 0:02:24]} c6 {[%emt 0:04:27]} 20. Bc4 {[%emt 0:07:04]} Bf8 {[%emt 0:00:21]} 21. Rae1 {[%emt 0:03:30] 0x0.0024c27a5b8bdp-1022s more active pieces.} Kc7 {[%emt 0:00:00]} 22. Kb3 {[%emt 0:05:28]} Kc8 {[%emt 0:01:21]} 23. f3 {[%emt 0:03:27]} Kb8 {[%emt 0:01:34]} 24. Bc1 {[%emt 0:08:44][%cal Of4f5]} Kc7 {[%emt 0:00:57]} 25. f5 $1 {[%emt 0:02:02]} gxf5 {[%emt 0:03:08] [#]} 26. Rhg1 $1 {[%emt 0:00:22][%cal Bh1g1,Bg1g8,Bg8h8,Bh8h7][%mdl 32] aiming for Rg8.} b5 {[%emt 0:11:50]} 27. axb6+ $1 {[%emt 0:00:33][%mdl 64] Discovered Attack} Kxb6 {[%emt 0:00:45] [#]} (27... Nxb6 $142 28. Rg8 (28. Bxa6 Ra8 $14) 28... c5) 28. Rg8 $1 {[%emt 0:04:49]} f6 $2 {[%emt 0:00:31] Loses the game.} (28... c5 $16 {was necessary.}) 29. Rh8 $18 {[%emt 0:03:28]} fxe5 {[%emt 0:00:43]} 30. Rxh7 {[%emt 0:01:08] Strongly threatening Bg5.} f4 {[%emt 0:00:13]} 31. Rd1 {[%emt 0:04:41] Against Bd6} Kc7 {[%emt 0:00:47]} (31... Nf6 $2 32. Rxd8 Rxd8 33. Rf7 Bxh6 34. Rxf6 $18) 32. Rg1 {[%emt 0:02:37]} ({Don't do} 32. Bxa6 $6 Bxh6 33. Rdxd7+ (33. Rxh6 Nc5+ 34. bxc5 Rxd1 $16) 33... Rxd7 $18) 32... Bd6 {[%emt 0:01:11]} (32... Rb8 $142 33. Rg2 Re7 34. Rxe7 Bxe7) 33. Rgg7 {[%emt 0:03:40]} e4 {[%emt 0:00:30]} 34. fxe4 {[%emt 0:00:10]} Be5 {[%emt 0:00:01]} 35. Rf7 {[%emt 0:01:04]} ({Not} 35. Bxa6 Bxg7 36. hxg7 (36. Rxg7 e5 $11) 36... e5 $14) 35... Kd6 {[%emt 0:00:00]} 36. Bxf4 {[%emt 0:03:50]} Bxf4 {[%emt 0:00:21]} 37. Rxf4 {[%emt 0:00:01]} Rh8 {[%emt 0:00:47]} 38. Rxh8 {[%emt 0:01:17]} Rxh8 {[%emt 0:00:31][%mdl 4096] Endgame KRB-KRN} 39. Rh4 {[%emt 0:00:23]} Ne5 {[%emt 0:00:50]} 40. Bxa6 {[%emt 0:02:27]} Rh7 {[%emt 0:00:31]} 41. c4 {[%emt 0:09:20][%cal Bc3c4,Bc4c5][%mdl 32] White is clearly winning.} Nf7 {[%emt 0:02:35]} 42. c5+ {[%emt 0:01:10]} Ke7 {[%emt 0:15:44]} 43. Ka4 {[%emt 0:03:49]} Rxh6 {[%emt 0:01:40]} (43... Kd8 $142 44. Ka5 Kc7) 44. Rxh6 {[%emt 0:00:23]} Nxh6 {[%emt 0:00:01]} 45. Ka5 {[%emt 0:00:08]} Ng4 {[%emt 0:03:11]} 46. Kb6 {[%emt 0:00:40]} Kd7 {[%emt 0:00:18]} 47. b5 {[%emt 0:00:17]} cxb5 {[%emt 0:00:11]} 48. c6+ {[%emt 0:00:17] Weighted Error Value: White=0.06 (flawless) /Black=0.23 (precise)} 1-0

[Event "55th Biel Festival MTO 2022"]
[Site "Biel"]
[Date "2022.07.22"]
[Round "9.11"]
[White "Aryan Chopra"]
[Black "Gurel, Ediz"]
[Result "1-0"]
[ECO "B41"]
[WhiteElo "2610"]
[BlackElo "2435"]
[Annotator "TA"]
[PlyCount "77"]
[EventDate "2022.07.13"]
[EventType "swiss"]
[EventCountry "SUI"]
[SourceTitle "playchess.com"]
[Source "ChessBase"]
[SourceQuality "1"]
[TimeControl "40/5400+30:1800+30"]

{[%evp 11,77,18,25,24,31,31,20,31,24,26,28,44,29,33,23,28,25,28,22,19,15,26,25,17,20,12,22,24,24,13,71,60,83,89,124,133,136,127,190,170,163,161,168,156,154,146,146,146,223,204,197,209,227,220,365,344,416,418,606,597,575,362,354,347,644,642,623,610]} 1. e4 {[%emt 0:00:03]} c5 {[%emt 0:00:08]} 2. Nf3 {[%emt 0:00:06]} e6 {[%emt 0:00:05]} 3. d4 {[%emt 0:00:04]} cxd4 {[%emt 0:00:05]} 4. Nxd4 {[%emt 0:00:04]} a6 {[%emt 0:00:12]} 5. c4 {[%emt 0:00:13]} Nf6 {[%emt 0:00:12]} 6. Nc3 {[%emt 0:00:11]} Bb4 {[%emt 0:00:18]} 7. Qd3 {[%emt 0:00:30] is the new trend. B41: Sicilian: Kan Variation: 5 c4.} d5 {[%emt 0:00:25]} 8. exd5 {[%emt 0:00:34]} exd5 {[%emt 0:00:05]} 9. Be2 {[%emt 0:00:15] The position is equal.} O-O {[%emt 0:00:32]} 10. O-O {[%emt 0:00:27]} (10. cxd5 {looks sharper.} Nxd5 11. O-O Nc6 12. Nxc6 bxc6 13. Nxd5 Qxd5 14. Qg3) 10... Nc6 {[%emt 0:00:23]} 11. Nxc6 {[%emt 0:00:23]} (11. cxd5 {is interesting.} Nxd5 12. Nxc6 bxc6 13. Nxd5 Qxd5 14. Qg3) 11... bxc6 {[%emt 0:00:06]} 12. cxd5 {[%emt 0:00:06]} Nxd5 {[%emt 0:03:31]} 13. Nxd5 {[%emt 0:00:24]} Qxd5 {[%emt 0:00:05]} 14. Qxd5 {[%emt 0:04:30]} (14. Qg3 {with more complications.} Bd6 15. Bf4 Bxf4 16. Qxf4 Be6 17. Rfc1) 14... cxd5 {[%emt 0:00:01]} 15. Bf4 $5 {[%emt 0:00:07][%mdl 4] Exploring less charted territory.} a5 {[%emt 0:10:28]} 16. Rfd1 {[%emt 0:11:45]} Be6 {[%emt 0:02:00] [#]} 17. Bf3 $146 {[%emt 0:00:43]} ({Predecessor:} 17. Rac1 Rfc8 18. Rxc8+ Rxc8 19. Rc1 Rxc1+ 20. Bxc1 Kf8 21. a3 Bc5 22. Bd2 Bd4 23. Bxa5 Bxb2 {1-0 (44) Tsaruk,M (2230)-Guz,A (2162) Bratislava 2019}) 17... Rfd8 {[%emt 0:02:59]} 18. Rac1 {[%emt 0:00:19]} Be7 {[%emt 0:17:13]} 19. Be5 {[%emt 0:02:45]} h6 {[%emt 0:09:26]} 20. Kf1 {[%emt 0:02:24]} Rac8 {[%emt 0:14:40]} (20... Bf8 $11 {keeps the balance.}) 21. Bc7 $1 $16 {[%emt 0:12:55] White is more active.} Rd7 {[%emt 0:07:05] White now steadily converts the win.} 22. Bxa5 {[%emt 0:01:32]} Rxc1 {[%emt 0:00:05]} 23. Rxc1 {[%emt 0:00:06]} d4 {[%emt 0:00:02]} 24. a3 {[%emt 0:16:51]} d3 {[%emt 0:03:03]} (24... Bg5 $16 {keeps fighting.} 25. Rc8+ Kh7) 25. Bd2 {[%emt 0:01:14]} Bf6 {[%emt 0:06:53]} 26. b4 {[%emt 0:05:37][%cal Bb2b4,Bb4b5,Bb5b6,Bb6b7][%mdl 32] And now b5 would win.} Ra7 {[%emt 0:00:43]} 27. b5 {[%emt 0:01:01] Hoping for b6.} Rxa3 {[%emt 0:00:16]} 28. b6 {[%emt 0:00:16] b7 is the strong threat.} Rb3 {[%emt 0:03:28]} 29. b7 {[%emt 0:00:15]} Kh7 {[%emt 0:02:10] [#]} (29... Be5 $16 30. Rc8+ Kh7) 30. g3 $1 $18 {[%emt 0:18:46]} Be5 {[%emt 0:05:40]} 31. Kg2 {[%emt 0:00:11]} g5 {[%emt 0:04:12]} 32. Rc5 {[%emt 0:04:56]} Bd6 {[%emt 0:01:38]} (32... Bd4 $142 33. Rc8 Be5) 33. Rc6 {[%emt 0:00:20]} Be5 {[%emt 0:00:43]} 34. Bc3 {[%emt 0:03:23]} Bb8 {[%emt 0:04:11]} (34... Bxc3 $2 {[#]} 35. Rxc3 $1 {[%mdl 512]} Rb1 36. Rc8 $18) (34... d2 $142) 35. Rc8 {[%emt 0:00:14] Threatens to win with Rh8+.} Bd6 {[%emt 0:00:05]} 36. Bh5 {[%emt 0:07:32][%csl Gc3][%cal Rc8h8]} Bd5+ {[%emt 0:01:20]} 37. f3 {[%emt 0:00:07][%csl Gc3][%cal Rc8h8]} f6 $2 {[%emt 0:02:29]} (37... Rxc3 38. Rxc3 Bxb7 39. Rxd3 Be5) 38. Bxf6 {[%emt 0:00:05][%csl Gf6][%cal Rc8h8]} Bg8 {[%emt 0:00:02]} 39. Rd8 {[%emt 0:00:19] Weighted Error Value: White=0.07 (flawless) /Black=0.36} 1-0